Cogmind - Beta 17 @@@ ROGUE MODE // 2026.08.13 @ 12:34:00 Player: Minty Result: Self-destructed Performance ------------- Evolutions (7) 3500 Regions Visited (17) 3400 Robots Destroyed (144) 720 Value Destroyed (5202) 5202 Prototype IDs (33) 660 Alien Tech Used (0) 0 Bonus (3546) 3546 TOTAL SCORE: 17028 Bonus ------- High Alert Combat Kills 340 Follower Combat Kills 606 Entered Garrisons 800 Used RIF Installer 1500 Aligned with FarCom 300 Cogmind --------- Core Integrity 324/1300 Matter 242/300 Energy 100/100 System Corruption 2% Temperature Cool (0) Movement Core (50) Location -3/Garrison Parts ------- > --- POWER (1) -------- (None) > --- PROPULSION (7) --- (None) > --- UTILITY (11) ----- Advanced Signal Interpreter Graphene Brace Hacking Suite Relay Coupler [NC] (38) Relay Coupler [Proto] (9) > --- WEAPON (2) ------- (None) > --- INVENTORY (5) ---- Hybrid Antimatter Reactor Graviton Reactor Advanced Remote Datajack Peak State ------------ > --- POWER ------------ Graviton Reactor > --- PROPULSION ------- Gyrokinetic Inverter Field Propulsion Drive Nuclear Pulse Array Q-thruster > --- UTILITY ---------- Advanced Signal Interpreter Graphene Brace Hacking Suite Improved System Shield Relay Coupler [Proto] Relay Coupler [Proto] Drone Bay > --- WEAPON ----------- Advanced Datajack Remote Datajack > --- INVENTORY -------- Hybrid Antimatter Reactor HERF Cannon HERF Cannon HERF Cannon Advanced Remote Datajack [Rating: 98] Favorites ----------- Power Light Deuterium Engine Engine Light Deuterium Engine Power Core Light Nuclear Core Reactor Graviton Reactor Propulsion Improved VTOL Module Treads Light Treads Leg Aluminum Leg Wheel Centrium Wheel Hover Unit Gravmag System Flight Unit Improved VTOL Module Utility System Shield Device Sensor Array Storage Large Storage Unit Processor Machine Analyzer Hackware System Shield Protection Improved Propulsion Shielding Weapon Powered Hammer Energy Gun Medium Laser Energy Cannon HERF Cannon Ballistic Gun Assault Rifle Launcher Mini Grenade Launcher Special Weapon Remote Datajack Impact Weapon Powered Hammer Slashing Weapon Power Sword Special Melee Weapon Advanced Datajack Build | -11 -10 -10 -10 -9 -8 -8 -8 -8 -7 -6 -6 -6 -5 -4 -4 -3 -3 ------- Run | Yrd Mat Min Exi Min Mat Gar Mat Gar Fac Fac Gar Fac Fac Fac Ext Res Gar Slots Evolved 14 | . . . . . 4 . . . 2 2 . . 2 2 . 2 . Power . | . . . . . . . . . . . . . . . . . . Propulsion 5 | . . . . . 3 . . . . 1 . . . 1 . . . Utility 9 | . . . . . 1 . . . 2 1 . . 2 1 . 2 . Weapon . | . . . . . . . . . . . . . . . . . . Parts Attached 125 | . 8 . . . 17 3 3 . 4 6 22 7 4 3 38 4 6 Power 15 | . 1 . . . 2 . . . 1 . 3 1 . . 6 1 . Engine 7 | . 1 . . . 2 . . . 1 . . 1 . . 2 . . Core 5 | . . . . . . . . . . . 3 . . . 2 . . Reactor 3 | . . . . . . . . . . . . . . . 2 1 . Propulsion 39 | . 4 . . . 6 . . . . 2 7 2 1 1 14 2 . Treads 4 | . 2 . . . . . . . . . . . . . 2 . . Leg 4 | . 2 . . . . . . . . . . . . . 2 . . Wheel 8 | . . . . . . . . . . . . . . . 8 . . Hover 2 | . . . . . . . . . . . 1 . . . 1 . . Flight 21 | . . . . . 6 . . . . 2 6 2 1 1 1 2 . Utility 45 | . 2 . . . 4 1 1 . 3 3 8 4 2 2 11 1 3 Device 6 | . 1 . . . . . . . . 1 1 . . 1 2 . . Storage 2 | . 1 . . . . . . . . . . . . . 1 . . Processor 8 | . . . . . 2 1 . . . . 1 2 1 . 1 . . Hackware 23 | . . . . . 1 . 1 . 3 1 4 2 1 1 5 1 3 Protection 6 | . . . . . 1 . . . . 1 2 . . . 2 . . Artifact . | . . . . . . . . . . . . . . . . . . Weapon 26 | . 1 . . . 5 2 2 . . 1 4 . 1 . 7 . 3 Energy Gun 6 | . . . . . 4 . 1 . . . . . . . 1 . . Energy Cannon 4 | . . . . . . . . . . . . . 1 . 1 . 2 Ballistic Gun 1 | . 1 . . . . . . . . . . . . . . . . Ballistic Cannon . | . . . . . . . . . . . . . . . . . . Launcher 3 | . . . . . 1 . . . . 1 1 . . . . . . Special Weapon 5 | . . . . . . . 1 . . . 2 . . . 1 . 1 Impact Weapon 2 | . . . . . . 2 . . . . . . . . . . . Slashing Weapon 4 | . . . . . . . . . . . 1 . . . 3 . . Piercing Weapon . | . . . . . . . . . . . . . . . . . . Special Melee Weapon 1 | . . . . . . . . . . . . . . . 1 . . Unidentified Prototypes 7 | . . . . . 2 . 1 . 1 1 . . 1 . . 1 . Corrupted Parts 4 | . . . . . . . . . . . 1 . . . 3 . . System Corruption 17 | . . . . . . . . . . . 3 . . . 14 . . Parts Lost 74 | . . . . . 1 1 1 . . . 13 1 3 . 42 . 12 Power 8 | . . . . . 1 1 . . . . 2 . . . 4 . . Propulsion 28 | . . . . . . . 1 . . . 4 1 1 . 17 . 4 Utility 25 | . . . . . . . . . . . 6 . 1 . 14 . 4 Weapon 13 | . . . . . . . . . . . 1 . 1 . 7 . 4 Highest Loss Streak 16 | . . . . . 1 1 1 . . . 4 1 3 . 16 . 11 To Critical Strikes 3 | . . . . . . . . . . . . . . . 3 . . Average Backups 12 | . 7 9 11 11 12 14 14 13 11 13 14 14 14 13 11 5 4 Power . | . . . 2 2 . . . . . . . . 1 1 . 1 1 Propulsion 2 | . 5 7 6 6 3 2 1 1 1 . . 1 1 . 1 . . Utility 4 | . . 1 1 1 1 6 5 5 3 4 6 6 5 5 4 . . Weapon 3 | . . 1 1 1 5 5 4 4 4 5 3 3 3 4 2 3 2 Tool/Special . | . . . . . . . . . . . . . . . . . . Unused Backups 24 | . 3 . . 2 2 3 3 . . 3 3 2 1 . 2 . . Power 5 | . 1 . . 2 1 . . . . 1 . . . . . . . Propulsion 2 | . . . . . 1 1 . . . . . . . . . . . Utility 12 | . . . . . . 2 3 . . 2 2 2 1 . . . . Weapon 4 | . 2 . . . . . . . . . 1 . . . 1 . . Tool/Special 1 | . . . . . . . . . . . . . . . 1 . . Average Slot Usage (%) 81 | . 95 100 100 100 76 71 70 63 72 79 79 94 97 92 73 50 64 Engine 6 | . 13 14 14 14 8 8 9 9 7 6 . 5 5 5 2 . . Treads 5 | . 17 28 28 28 . . . . . . . . . . 1 . . Wheel 2 | . . . . . . . . . . . . . . . 17 . . Flight 16 | . . . . . 35 19 18 18 15 19 25 40 35 35 4 5 8 Device 3 | . 10 14 14 14 . . . . . 6 3 . . 5 . 9 4 Storage 7 | . 14 14 14 14 9 9 9 9 7 6 6 6 5 5 4 . . Processor 4 | . . . . . 9 9 4 . . . . 4 10 10 10 4 4 Hackware 14 | . . . . . 3 9 12 9 26 24 21 26 27 24 20 15 28 Energy Gun 3 | . 14 14 14 14 5 . . . . . . . . . . . . Ballistic Gun 2 | . 14 14 14 14 . . . . . . . . . . . . . Impact Weapon 4 | . . . . . . 13 17 18 14 7 4 . . . 1 . . Slashing Weapon 1 | . . . . . . . . . . . 3 4 5 5 3 . . Peak Build Rating 98 | . 7 7 12 12 51 59 59 54 64 76 77 52 57 69 96 98 98 Average Rating 48 | . 6 7 10 11 30 54 57 54 62 73 48 48 55 65 65 76 87 On Entrance 42 | 6 6 7 7 12 11 24 59 54 54 64 76 41 51 57 67 72 98 Avg Prop Armor Cover (%) 9 | . . . . . . . . . . . 11 . . . 16 . 1 Naked Turns . | . . . . . . . . . . . . . . . . . . Heaviest Build 101 | 14 28 28 28 28 35 31 31 31 37 41 41 29 30 36 101 26 38 Greatest Support 112 | 20 40 40 40 40 55 55 55 55 55 60 60 33 33 43 112 29 29 Greatest Overweight (x) 9 | . 1 . . . . . . . . . 1 . 9 . 8 . 3 Average Overweight (x) . | . . . . . . . . . . . . . . . . . . Largest Inventory Capacity 25 | . 15 15 15 15 15 15 15 15 15 15 15 15 15 15 25 5 5 Average Capacity 14 | . 12 15 15 15 15 15 15 15 15 15 15 15 15 15 14 5 5 Most Carried 15 | . 9 9 14 15 15 15 15 13 13 15 15 15 15 14 15 5 5 Average Carried 12 | . 7 9 12 14 14 14 14 13 11 13 14 14 14 13 11 5 4 Final Capacity 15 | 8 15 15 15 15 15 15 15 15 15 15 15 15 15 15 5 5 5 Final Carried 15 | 6 9 9 14 14 15 15 13 13 12 15 14 15 13 14 5 5 3 Class Distribution -------------------- 24% | Mutant 17% | Bothacker-Mutant 11% | Hacker-Sprinter 10% | Hacker-Mutant 7% | Bothacker-Gladiator 7% | Skirmisher 6% | Gladiator 5% | Bothacker-Sprinter 3% | Sprinter Dominant Class ---------------- Mutant | -10/Materials Mutant | -10/Mines Mutant | -10/Exiles Skirmisher | -9/Mines Sprinter | -8/Materials Gladiator | -8/Garrison Bothacker-Gladiator | -8/Materials Bothacker-Mutant | -8/Garrison Bothacker-Mutant | -7/Factory Commander-Mutant | -6/Factory Bothacker-Mutant | -6/Garrison Hacker-Sprinter | -6/Factory Hacker-Sprinter | -5/Factory Hacker-Sprinter | -4/Factory Hacker-Mutant | -4/Extension Mutant | -3/Research Bothacker-Mutant | -3/Garrison Resources | -11 -10 -10 -10 -9 -8 -8 -8 -8 -7 -6 -6 -6 -5 -4 -4 -3 -3 ----------- Run | Yrd Mat Min Exi Min Mat Gar Mat Gar Fac Fac Gar Fac Fac Fac Ext Res Gar Matter Collected 3223 | 200 150 . . 30 193 426 149 . . 537 394 332 70 . 552 1 189 Remotely . | . . . . . . . . . . . . . . . . . . Salvage Created 4662 | . 257 . . 77 95 389 432 52 . 755 444 684 194 27 1256 . . Parts 214 | . 15 . . 4 3 39 9 1 . 24 24 49 15 1 30 . . Haulers Intercepted 8 | . 1 . . . . . 3 . . 1 . 3 . . . . . Recyclers Shooed 1 | . . . . . . . . . . . . . . . 1 . . Parts Field Recycled . | . . . . . . . . . . . . . . . . . . Retrieved Matter . | . . . . . . . . . . . . . . . . . . Parts Self-Destructed . | . . . . . . . . . . . . . . . . . . Prevented . | . . . . . . . . . . . . . . . . . . Parts Restored . | . . . . . . . . . . . . . . . . . . Kills | -11 -10 -10 -10 -9 -8 -8 -8 -8 -7 -6 -6 -6 -5 -4 -4 -3 -3 ------- Run | Yrd Mat Min Exi Min Mat Gar Mat Gar Fac Fac Gar Fac Fac Fac Ext Res Gar Combat Hostiles Destroyed 89 | . 7 . . 2 . 25 5 1 . 9 14 7 4 . 15 . . Melee 20 | . . . . . . 2 2 1 . 1 8 . 1 . 5 . . Guns 9 | . 7 . . 2 . . . . . . . . . . . . . AOE 46 | . . . . . . 21 1 . . 6 3 7 3 . 5 . . Classes Destroyed 16 | . 6 . . . 1 3 1 . . 3 1 1 . . . . . Worker 16 | . 1 . . . . . 2 . . 4 . 6 2 1 . . . Builder 7 | . . . . . . . . . . 3 . 3 . . 1 . . Tunneler 3 | . . . . . . . . . . 1 . 2 . . . . . Hauler 8 | . 1 . . . . . 3 . . 1 . 3 . . . . . Recycler 7 | . . . . . 1 . 1 . . 1 . 2 . . 2 . . Mechanic 1 | . . . . . . . . . . . . 1 . . . . . Operator 4 | . 1 . . . . . . . . . . 3 . . . . . Watcher 6 | . 1 . . . . 1 . . . . . 2 1 . 1 . . Swarmer 43 | . 6 . . . . 15 1 . . 5 3 6 3 . 4 . . Cutter 5 | . . . . . . . . . . . 5 . . . . . . Saboteur 4 | . . . . . . 4 . . . . . . . . . . . Grunt 20 | . 1 . . 2 . 2 1 1 . 4 3 1 . . 5 . . Duelist 1 | . . . . . . 1 . . . . . . . . . . . Sentry 10 | . . . . . . 3 2 . . . 1 . . . 4 . . Hunter 5 | . . . . . . . 1 . . 2 . . . . 2 . . Programmer 4 | . . . . . . . . . . 1 2 . 1 . . . . Best Kill Streak 13 | . 4 . . 2 1 10 3 1 . 5 4 13 4 1 5 . . Combat Bots Only 10 | . 3 . . 2 . 10 2 1 . 3 4 4 3 . 5 . . Max Kills in Single Turn 7 | . 2 . . 1 1 4 1 1 . 2 1 7 4 1 2 . . Gunslinging 1 | . 1 . . . . . . . . . . . . . . . . Exploded 4 | . . . . . . 4 1 . . 1 1 2 3 . 2 . . Melee 1 | . . . . . . 1 1 1 . 1 1 . 1 . 1 . . Uniques/NPCs Destroyed . | . . . . . . . . . . . . . . . . . . Combat | -11 -10 -10 -10 -9 -8 -8 -8 -8 -7 -6 -6 -6 -5 -4 -4 -3 -3 -------- Run | Yrd Mat Min Exi Min Mat Gar Mat Gar Fac Fac Gar Fac Fac Fac Ext Res Gar Hostile Shots Fired 774 | . 25 . . 15 21 29 52 6 . 47 85 13 25 2 313 19 122 Missed 270 | . 5 . . 4 12 11 17 4 . 21 27 6 13 . 100 8 42 Hits 504 | . 20 . . 11 9 18 35 2 . 26 58 7 12 2 213 11 80 Melee 2 | . . . . . 1 . . . . . 1 . . . . . . Projectile 502 | . 20 . . 11 8 18 35 2 . 26 57 7 12 2 213 11 80 AOE 1 | . . . . . . . . . . . 1 . . . . . . Critical Strikes 19 | . 1 . . . . . 2 . . 1 2 . . . 11 1 1 Actively Blocked 3 | . . . . . . . . . . . 1 . . . . 1 1 Part Disruptions 1 | . . . . . . . . . . . . . . . . . 1 Damage Taken 9947 | . 176 . . 119 356 305 525 30 . 421 1189 144 231 37 4554 214 1646 Core 2795 | . 20 . . 10 54 63 47 14 . 66 309 44 78 . 1114 91 885 Absorbed by Shields 177 | . . . . . . 22 . . . . . . . . . . 155 Redirected to Shielding 326 | . . . . . . . . . . 68 258 . . . . . . Ignored by Resistances 25 | . . . . . . . . . . . . . . . 25 . . Regen/Repaired (Parts) 117 | . . . . . 30 . . . . . . 30 . 57 . . . Core Remaining (%) 71 | 100 . . . 88 . . . 67 100 . . 50 92 . 3 . . Volleys Fired 174 | . 26 . . 9 9 19 9 . 4 29 11 15 5 . 29 . 9 Largest 2 | . 2 . . 2 2 1 1 . 1 1 1 1 1 . 1 . 2 Hottest 176 | . 70 . . 70 90 30 40 . 5 33 30 30 30 . 75 . 176 Shots Fired 212 | . 52 . . 18 10 20 9 . 4 29 11 15 5 . 29 . 10 Gun 92 | . 52 . . 18 2 . 5 . . . . . . . 15 . . Cannon 6 | . . . . . . . . . . . . . . . . . 6 Launcher 68 | . . . . . 8 20 . . . 11 5 15 5 . 4 . . Special 46 | . . . . . . . 4 . 4 18 6 . . . 10 . 4 Kinetic 35 | . 26 . . 9 . . . . . . . . . . . . . Thermal 36 | . 26 . . 9 1 . . . . . . . . . . . . Explosive 68 | . . . . . 8 20 . . . 11 5 15 5 . 4 . . Electromagnetic 27 | . . . . . 1 . 5 . . . . . . . 15 . 6 Robot Hit Streak 12 | . 6 . . 9 4 8 3 . 1 4 2 2 5 . 12 . 9 Robot Miss Streak 6 | . 4 . . 1 . 1 2 . 2 6 3 1 . . 2 . . Penetration Max . | . . . . . . . . . . . . . . . . . . Secondary Targets 4 | . 3 . . 1 . . . . . . . . . . . . . Max Gunslinging Chain 1 | . 1 . . 1 . . . . . . . . . . . . . Shots Hit Robots 249 | . 28 . . 14 2 13 28 6 1 30 27 17 12 2 63 . 6 Core Hits 155 | . 16 . . 5 1 27 1 1 . 22 14 35 9 1 23 . . Critical Kills 2 | . . . . . . 1 . . . 1 . . . . . . . Critical Parts Destroyed 19 | . . . . . . 2 5 1 . 4 3 . . . 4 . . Critical Strikes 26 | . 2 . . . . 3 5 1 . 5 3 . . 1 6 . . Burn 2 | . 2 . . . . . . . . . . . . . . . . Smash 21 | . . . . . . 3 5 1 . 5 3 . . . 4 . . Sever 3 | . . . . . . . . . . . . . . 1 2 . . Melee Attacks 256 | . . . . . . 38 33 15 . 26 48 21 11 8 55 . 1 Impact 169 | . . . . . . 38 33 15 . 26 28 . . . 29 . . Slashing 86 | . . . . . . . . . . . 20 21 11 8 26 . . Piercing . | . . . . . . . . . . . . . . . . . . Sneak Attacks 47 | . . . . . . 3 10 1 . 13 4 5 4 1 6 . . Combat Hostiles 6 | . . . . . . 1 2 . . 1 1 . 1 . . . . Follow-up Attacks 14 | . . . . . . 1 5 2 . . 2 . . . 4 . . Damage Inflicted 14970 | . 365 . . 181 58 1356 1494 321 . 2191 1379 3351 1009 127 3073 . 65 Guns 920 | . 349 . . 170 13 . 34 . . . . . . . 354 . . Cannons 65 | . . . . . . . . . . . . . . . . . 65 Explosions 5380 | . . . . . 45 977 . . . 732 218 2521 378 . 509 . . Melee 8577 | . . . . . . 379 1460 321 . 1459 1161 830 631 127 2209 . . Ramming 28 | . 16 . . 11 . . . . . . . . . . 1 . . Kinetic 232 | . 135 . . 97 . . . . . . . . . . . . . Thermal 1591 | . 214 . . 73 45 . . . . . . 1259 . . . . . Explosive 4076 | . . . . . . 977 . . . 732 218 1262 378 . 509 . . Electromagnetic 466 | . . . . . 13 . 34 . . . . . . . 354 . 65 Impact 5564 | . . . . . . 379 1460 321 . 1459 671 . . . 1274 . . Slashing 3013 | . . . . . . . . . . . 490 830 631 127 935 . . Piercing . | . . . . . . . . . . . . . . . . . . Highest Corruption 23 | . . . . . 2 2 2 2 . 2 6 6 1 . 23 . 2 Average Corruption 4 | . . . . . 2 2 2 2 . 1 5 6 1 . 11 . 1 Corruption Purged . | . . . . . . . . . . . . . . . . . . Corruption Blocked . | . . . . . . . . . . . . . . . . . . Effects 81 | . . . . . 6 15 4 2 . . 19 9 . . 26 . . Message Errors 22 | . . . . . 2 6 1 1 . . 3 2 . . 7 . . Matter Fused 20 | . . . . . 3 . . . . . 7 1 . . 9 . . Heat Flow Errors 11 | . . . . . 1 3 1 . . . 2 1 . . 3 . . Energy Discharges 9 | . . . . . . 2 2 . . . 2 2 . . 1 . . Data Loss (minor) 13 | . . . . . . 3 . 1 . . 4 2 . . 3 . . Data Loss (major) 3 | . . . . . . . . . . . 1 1 . . 1 . . Misfires 1 | . . . . . . 1 . . . . . . . . . . . Misdirections 2 | . . . . . . . . . . . . . . . 2 . . Overload Shots . | . . . . . . . . . . . . . . . . . . Overflow Damage 2790 | . . . . . . 190 694 66 . 595 364 345 85 . 450 . 1 Projectiles 1 | . . . . . . . . . . . . . . . . . 1 Explosions 278 | . . . . . . 23 . . . 31 14 197 . . 13 . . Melee 2511 | . . . . . . 167 694 66 . 564 350 148 85 . 437 . . Knockbacks 14 | . . . . . . . 4 2 . 1 1 . . . 6 . . Impact 13 | . . . . . . . 4 1 . 1 1 . . . 6 . . Kinetic . | . . . . . . . . . . . . . . . . . . Secondary 1 | . . . . . . . . 1 . . . . . . . . . Self-Inflicted Damage 231 | . . . . . 4 113 . . . . 43 35 . . 36 . . Shots 9 | . . . . . 1 5 . . . . 1 1 . . 1 . . Rammed 5 | . 2 . . 3 . . . . . . . . . . . . . Targets Rammed 6 | . 2 . . 3 . . . . . . . . . . 1 . . Kicked 1 | . . . . . . . . . . . . . . . 1 . . Crushed . | . . . . . . . . . . . . . . . . . . Highest Temperature 458 | . 60 . . 138 134 141 443 . . 8 191 272 458 176 200 . 57 Average Temperature 45 | . 20 . . 69 44 47 132 . . 8 32 30 34 39 44 . 28 Received Heat Transfer 1581 | . 12 . . 66 54 54 270 18 . 72 162 9 54 9 747 18 36 Effects 3 | . . . . . . . 2 . . . . 1 . . . . . Shutdowns 1 | . . . . . . . 1 . . . . . . . . . . Energy Bleed 2 | . . . . . . . 1 . . . . 1 . . . . . Siege Activations . | . . . . . . . . . . . . . . . . . . Martial Activations . | . . . . . . . . . . . . . . . . . . Shielding Activations . | . . . . . . . . . . . . . . . . . . Robots Disrupted . | . . . . . . . . . . . . . . . . . . Combat Hostiles . | . . . . . . . . . . . . . . . . . . Robots Corrupted 20 | . . . . . . 2 3 . . 3 3 . . . 9 . . Combat Hostiles 14 | . . . . . . 2 2 . . 2 3 . . . 5 . . Parts Fried 40 | . . . . . . 4 8 1 . 12 5 . . . 10 . . Impact Corruptions 65 | . . . . . . 5 15 2 . 15 12 . . . 16 . . Robots Melted . | . . . . . . . . . . . . . . . . . . Combat Hostiles . | . . . . . . . . . . . . . . . . . . Parts Melted 4 | . 2 . . . . . . . . . . . . . 2 . . Heat Transferred 1799 | . 777 . . 222 . . . . . . . 800 . . . . . Parts Sabotaged . | . . . . . . . . . . . . . . . . . . Parts Stolen . | . . . . . . . . . . . . . . . . . . Parts Stripped . | . . . . . . . . . . . . . . . . . . Power Chain Reactions 1 | . . . . . 1 . . . . . . . . . . . . Alert | -11 -10 -10 -10 -9 -8 -8 -8 -8 -7 -6 -6 -6 -5 -4 -4 -3 -3 ------- Run | Yrd Mat Min Exi Min Mat Gar Mat Gar Fac Fac Gar Fac Fac Fac Ext Res Gar Maximum Alert Level 4 | . . . . . 1 4 2 2 1 1 2 3 . . 1 . . Low Security (%) 51 | . 100 100 . 100 56 3 . . 25 54 . 2 100 100 90 100 100 Level 1 25 | . . . . . 43 38 . 64 74 45 62 43 . . 9 . . Level 2 16 | . . . . . . 7 100 35 . . 37 43 . . . . . Level 3 1 | . . . . . . 8 . . . . . 10 . . . . . Level 4 5 | . . . . . . 41 . . . . . . . . . . . Level 5 . | . . . . . . . . . . . . . . . . . . High Security . | . . . . . . . . . . . . . . . . . . Max Security . | . . . . . . . . . . . . . . . . . . Peak Influence 1328 | . 70 9 . 32 281 1328 652 451 236 398 595 802 119 54 243 63 53 Initial 647 | . . 9 . . 5 156 647 384 236 91 261 312 18 39 . 48 21 Average 264 | . 29 1 . 2 140 743 562 406 213 214 364 441 22 15 99 46 34 Influence Increases 5661 | . 194 . . 40 436 1182 366 67 . 597 574 692 284 49 1063 30 87 Destroy 0b10 Robot/C 2200 | . 140 . . 40 . 500 100 20 . 320 300 140 80 . 540 . 20 Destroy 0b10 Robot/NC 290 | . 25 . . . 5 5 30 . . 55 5 110 15 5 35 . . Destroy Leader 250 | . 24 . . . . 10 46 . . 64 . 30 12 . 64 . . Allied During Kill 250 | . . . . . . . . . . 88 13 . 3 . 144 . 2 Successful Hack 246 | . 5 . . . 27 . 8 14 . . 40 49 63 6 34 . . Select Force Hacks 60 | . . . . . 30 . . . . . . 30 . . . . . Disable Machine 225 | . . . . . 15 15 . . . 30 . 135 15 . 15 . . Anti-Garrison Action 500 | . . . . . . 350 . . . . 100 . . . . . 50 Destroy Structure 470 | . . . . . 14 137 2 18 . 40 71 78 36 8 66 . . Partial Spotted 150 | . . . . . 30 30 15 . . . . . . 30 . 30 15 Lose Combat Pursuer 1020 | . . . . . 315 135 165 15 . . 45 120 60 . 165 . . Influence Decreases 5661 | . 168 26 . 24 211 95 1103 207 265 409 353 1249 240 129 972 95 115 Entered New Map 1824 | . . 17 . . 11 85 681 207 215 95 113 283 20 43 2 45 7 Time Decay 1739 | . 168 9 . 24 190 . 222 . 50 214 . 206 140 76 390 50 . Lost Part 542 | . . . . . 10 10 10 . . . 130 10 30 . 284 . 58 Lost Ally 656 | . . . . . . . 40 . . 100 110 . 50 10 296 . 50 Purge Threat 900 | . . . . . . . 150 . . . . 750 . . . . . Squads Dispatched 33 | . 2 . . . 3 . 3 . . 5 . 6 7 2 5 . . Investigation 19 | . 1 . . . 3 . 2 . . 2 . 5 2 1 3 . . Extermination 2 | . . . . . . . . . . 1 . . 1 . . . . Reinforcement 10 | . 1 . . . . . 1 . . 2 . 1 2 1 2 . . Assault . | . . . . . . . . . . . . . . . . . . Garrison 2 | . . . . . . . . . . . . . 2 . . . . Intercept . | . . . . . . . . . . . . . . . . . . Searches Triggered . | . . . . . . . . . . . . . . . . . . Construction Impeded 3 | . . . . . . . . . . 1 . . 1 . 1 . . Haulers Reinforced 1 | . . . . . . . . . . . . . 1 . . . . Active Scanning Responses . | . . . . . . . . . . . . . . . . . . Cargo Convoy Interrupts . | . . . . . . . . . . . . . . . . . . Stealth | -11 -10 -10 -10 -9 -8 -8 -8 -8 -7 -6 -6 -6 -5 -4 -4 -3 -3 --------- Run | Yrd Mat Min Exi Min Mat Gar Mat Gar Fac Fac Gar Fac Fac Fac Ext Res Gar Distress Signals 11 | . . . . . 1 . 1 . . 1 3 . 1 1 2 1 . Communications Jammed . | . . . . . . . . . . . . . . . . . . Distress Signals . | . . . . . . . . . . . . . . . . . . Times Spotted 265 | . 12 . . 3 25 27 24 2 2 28 22 23 24 9 41 7 16 Peak Tracking Total 14 | . 4 . . 3 14 7 8 2 1 5 4 5 8 6 7 6 13 Tactical Retreats 37 | . . . . . 7 6 7 1 . . 4 2 3 2 5 . . ECM-based Alert Blocks 10 | . . . . . . . . . . . 1 . 4 5 . . . Traps | -11 -10 -10 -10 -9 -8 -8 -8 -8 -7 -6 -6 -6 -5 -4 -4 -3 -3 ------- Run | Yrd Mat Min Exi Min Mat Gar Mat Gar Fac Fac Gar Fac Fac Fac Ext Res Gar Traps Triggered 20 | . 2 . . . 1 8 1 . . . 2 1 . . 2 . 3 Indirectly . | . . . . . . . . . . . . . . . . . . Trap Hack Attempts . | . . . . . . . . . . . . . . . . . . Triggered . | . . . . . . . . . . . . . . . . . . Disarmed 6 | . . . . . . . . . . . . . 6 . . . . Reprogrammed . | . . . . . . . . . . . . . . . . . . Reused . | . . . . . . . . . . . . . . . . . . Traps Extracted . | . . . . . . . . . . . . . . . . . . Installed . | . . . . . . . . . . . . . . . . . . Triggered . | . . . . . . . . . . . . . . . . . . Objects Rigged 1 | . . . . . . . 1 . . . . . . . . . . Machines | -11 -10 -10 -10 -9 -8 -8 -8 -8 -7 -6 -6 -6 -5 -4 -4 -3 -3 ---------- Run | Yrd Mat Min Exi Min Mat Gar Mat Gar Fac Fac Gar Fac Fac Fac Ext Res Gar Machines Disabled 24 | . . . . . 1 8 . . . 2 1 9 1 . 1 . 1 Max in Single Turn 6 | . . . . . 1 2 . . . 2 1 6 . . 1 . 1 Garrison Access 2 | . . . . . . . . . . . . 1 1 . . . . Garrison Relay 7 | . . . . . . 5 . . . . 1 . . . . . 1 Phase Generator 1 | . . . . . . 1 . . . . . . . . . . . Machines Repaired . | . . . . . . . . . . . . . . . . . . Machines Dismantled . | . . . . . . . . . . . . . . . . . . Machines Sabotaged . | . . . . . . . . . . . . . . . . . . Overloaded Fab Kills . | . . . . . . . . . . . . . . . . . . Hacking | -11 -10 -10 -10 -9 -8 -8 -8 -8 -7 -6 -6 -6 -5 -4 -4 -3 -3 --------- Run | Yrd Mat Min Exi Min Mat Gar Mat Gar Fac Fac Gar Fac Fac Fac Ext Res Gar Machines Accessed 58 | . 4 . 2 . 6 2 4 4 . 4 4 8 8 5 6 1 . Terminals 37 | . 4 . . . 3 2 3 4 . 2 4 3 5 2 5 . . Fabricators 2 | . . . . . . . . . . . . 1 . 1 . . . Repair Stations 3 | . . . . . 1 . . . . . . 1 . 1 . . . Recycling Units 3 | . . . . . . . . . . 1 . 1 . . 1 . . Scanalyzers 4 | . . . . . 1 . . . . . . 1 1 1 . . . Garrison Access 7 | . . . . . 1 . 1 . . 1 . 1 2 . . 1 . Total Hacks 195 | . 10 . 2 . 24 4 12 8 . 8 13 42 32 23 16 1 . Successful 95 | . 5 . 2 . 17 . 3 4 . 3 3 21 19 13 4 1 . Failed 98 | . 5 . . . 7 4 9 4 . 5 10 20 12 10 12 . . Catastrophic 21 | . . . . . 1 1 3 1 . 2 2 2 4 1 4 . . Database Lockouts 2 | . . . . . . . . . . . . 1 1 . . . . Manual 82 | . 9 . 1 . 14 . 7 3 . 1 2 17 17 6 5 . . Terminals 133 | . 10 . . . 15 4 11 8 . 5 13 23 19 13 12 . . Fabricators 10 | . . . . . . . . . . . . 5 . 5 . . . Repair Stations 6 | . . . . . 3 . . . . . . 1 . 2 . . . Recycling Units 10 | . . . . . . . . . . 2 . 4 . . 4 . . Scanalyzers 19 | . . . . . 5 . . . . . . 8 3 3 . . . Garrison Access 15 | . . . . . 1 . 1 . . 1 . 1 10 . . 1 . Terminal Hacks 41 | . 3 . 2 . 5 . 1 4 . . 3 9 7 4 3 . . Record 2 | . 1 . 1 . . . . . . . . . . . . . . Part Schematic 1 | . . . . . 1 . . . . . . . . . . . . Robot Analysis 2 | . . . . . . . . . . . . 1 . . 1 . . Prototype ID Bank 1 | . . . . . . . . . . . . . 1 . . . . Open Door 3 | . . . . . . . . 1 . . . . . . 2 . . Level Access Points 1 | . . . . . . . . . . . . . 1 . . . . Branch Access Points 4 | . . . . . 1 . . . . . . 1 1 1 . . . Emergency Access Points 3 | . . . . . . . . 1 . . 1 . 1 . . . . Terminal Index 1 | . . . . . 1 . . . . . . . . . . . . Alert Level 3 | . . . . . 2 . . . . . . 1 . . . . . Unreport Threat 6 | . . . . . . . 1 . . . . 5 . . . . . Locate Traps 2 | . . . . . . . . . . . . . 1 1 . . . Disarm Traps 1 | . . . . . . . . . . . . . 1 . . . . Dispatch Records 1 | . . . . . . . . . . . . . . 1 . . . Reinforcement Status 1 | . . . . . . . . . . . . . 1 . . . . Recall Investigation 1 | . 1 . . . . . . . . . . . . . . . . Recall Reinforcements 1 | . 1 . . . . . . . . . . . . . . . . Hauler Manifests 1 | . . . . . . . . . . . . 1 . . . . . Registered Prototypes 1 | . . . . . . . . . . . . . . 1 . . . Garrison Registry 2 | . . . . . . . . 1 . . 1 . . . . . . Patrol Navigation 1 | . . . . . . . . 1 . . . . . . . . . Security Stations 1 | . . . . . . . . . . . 1 . . . . . . Proto ID Catalog 1 | . . . 1 . . . . . . . . . . . . . . Fabricator Hacks 5 | . . . . . . . . . . . . 2 . 3 . . . Network Status 1 | . . . . . . . . . . . . . . 1 . . . Load Schematic 2 | . . . . . . . . . . . . 1 . 1 . . . Build 2 | . . . . . . . . . . . . 1 . 1 . . . Repair Station Hacks 3 | . . . . . 1 . . . . . . . . 2 . . . Scan Component 1 | . . . . . . . . . . . . . . 1 . . . Repair 1 | . . . . . . . . . . . . . . 1 . . . Refit 1 | . . . . . 1 . . . . . . . . . . . . Recycling Unit Hacks 4 | . . . . . . . . . . 2 . 1 . . 1 . . Report Inventory 3 | . . . . . . . . . . 1 . 1 . . 1 . . Retrieve Components 1 | . . . . . . . . . . 1 . . . . . . . Scanalyzer 13 | . . . . . 4 . . . . . . 5 2 2 . . . Insert Component 3 | . . . . . 2 . . . . . . 1 . . . . . Analyze 3 | . . . . . 2 . . . . . . 1 . . . . . Retrieve Study 7 | . . . . . . . . . . . . 3 2 2 . . . Garrison Access Hacks 7 | . . . . . 1 . 1 . . 1 . 1 2 . . 1 . Unlock Access 4 | . . . . . 1 . 1 . . 1 . . . . . 1 . Seal Access 2 | . . . . . . . . . . . . 1 1 . . . . Coupler Status 1 | . . . . . . . . . . . . . 1 . . . . Unauthorized Hacks 22 | . 2 . . . 6 . 1 . . . . 3 8 2 . . . Terminals 11 | . 2 . . . 4 . 1 . . . . 1 2 1 . . . Assimilate 3 | . . . . . . . . . . . . 1 2 . . . . Botnet 3 | . 1 . . . 1 . . . . . . . . 1 . . . Detonate 1 | . . . . . . . 1 . . . . . . . . . . Disrupt 1 | . . . . . 1 . . . . . . . . . . . . Operators 2 | . 1 . . . 1 . . . . . . . . . . . . Skim 1 | . . . . . 1 . . . . . . . . . . . . Fabricators 1 | . . . . . . . . . . . . . . 1 . . . Prioritize 1 | . . . . . . . . . . . . . . 1 . . . Repair Stations 2 | . . . . . 1 . . . . . . 1 . . . . . Patch 2 | . . . . . 1 . . . . . . 1 . . . . . Recycling Units 1 | . . . . . . . . . . . . 1 . . . . . Tunnel 1 | . . . . . . . . . . . . 1 . . . . . Scanalyzers 1 | . . . . . 1 . . . . . . . . . . . . Extract 1 | . . . . . 1 . . . . . . . . . . . . Garrison Access 6 | . . . . . . . . . . . . . 6 . . . . Broadcast 1 | . . . . . . . . . . . . . 1 . . . . Restock 1 | . . . . . . . . . . . . . 1 . . . . Decoy 1 | . . . . . . . . . . . . . 1 . . . . Reprogram 1 | . . . . . . . . . . . . . 1 . . . . Intercept 1 | . . . . . . . . . . . . . 1 . . . . Watchers 1 | . . . . . . . . . . . . . 1 . . . . Data Cores Recovered 2 | . . . . . . . . . . . . 2 . . . . . Used . | . . . . . . . . . . . . . . . . . . Hacking Detections 46 | . 4 . . . 5 2 3 2 . 4 3 6 7 4 5 1 . Full Trace Events 15 | . 1 . . . 1 1 1 . . 2 1 3 1 1 3 . . Feedback Events 1 | . . . . . . . . . . 1 . . . . . . . Corruption 1 | . . . . . . . . . . 1 . . . . . . . Feedback Blocked . | . . . . . . . . . . . . . . . . . . Robot Schematics Acquired . | . . . . . . . . . . . . . . . . . . Robots Built . | . . . . . . . . . . . . . . . . . . Authchips . | . . . . . . . . . . . . . . . . . . Time . | . . . . . . . . . . . . . . . . . . Total Robot Build Rating . | . . . . . . . . . . . . . . . . . . Part Schematics Acquired 8 | . . . . . 7 . . . . . . 1 . . . . . Parts Built 2 | . . . . . . . . . . . . 1 . 1 . . . Authchips . | . . . . . . . . . . . . . . . . . . Time 72 | . . . . . . . . . . . . 36 . 36 . . . Total Part Build Rating 6 | . . . . . . . . . . . . 3 . 3 . . . Part Studies Acquired 7 | . . . . . . . . . . . . 3 2 2 . . . Parts Repaired 1 | . . . . . . . . . . . . . . 1 . . . Time 38 | . . . . . . . . . . . . . . 38 . . . Parts Recycled . | . . . . . . . . . . . . . . . . . . Recycled Matter . | . . . . . . . . . . . . . . . . . . Retrieved Matter . | . . . . . . . . . . . . . . . . . . Retrieved Components 1 | . . . . . . . . . . 1 . . . . . . . Parts Scanalyzed 3 | . . . . . 2 . . . . . . 1 . . . . . Part Schematics Acquired 3 | . . . . . 2 . . . . . . 1 . . . . . Parts Damaged . | . . . . . . . . . . . . . . . . . . Bothacking | -11 -10 -10 -10 -9 -8 -8 -8 -8 -7 -6 -6 -6 -5 -4 -4 -3 -3 ------------ Run | Yrd Mat Min Exi Min Mat Gar Mat Gar Fac Fac Gar Fac Fac Fac Ext Res Gar Used RIF Installer 3 | . . . . . . 1 . 1 . . 1 . . . . . . Command Fork 1 | . . . . . . . . 1 . . . . . . . . . Zone Cloak 1 | . . . . . . . . . . . 1 . . . . . . Robots Hacked 18 | . . . . . . . 3 . 1 9 3 . . . 1 . 1 Non-combat 3 | . . . . . . . . . 1 2 . . . . . . . Combat 15 | . . . . . . . 3 . . 7 3 . . . 1 . 1 Robot Hacks Applied 21 | . . . . . . . 3 . 1 12 3 . . . 1 . 1 parse_system 1 | . . . . . . . . . . . . . . . 1 . . ignore_repairs 1 | . . . . . . . . . . 1 . . . . . . . show_paths 1 | . . . . . . . . . . 1 . . . . . . . focus_fire 1 | . . . . . . . . . . 1 . . . . . . . broadcast_data 1 | . . . . . . . . . . 1 . . . . . . . disrupt_area 1 | . . . . . . . . . . 1 . . . . . . . amplify_resonance 2 | . . . . . . . 1 . . 1 . . . . . . . overwrite_iff 6 | . . . . . . . 1 . . 4 1 . . . . . . streamctrl_high 1 | . . . . . . . 1 . . . . . . . . . . formatsys_low 1 | . . . . . . . . . . 1 . . . . . . . formatsys_high 5 | . . . . . . . . . 1 1 2 . . . . . 1 Relay Couplers Released 30 | . . . . . . 22 . . . . 3 . 2 . . . 3 Machine Destruction 28 | . . . . . . 22 . . . . 3 . . . . . 3 Programmers 2 | . . . . . . . . . . . . . 2 . . . . Attached 14 | . . . . . . . 1 . 3 1 2 . 1 . 3 . 3 Fabnet Peak Effective % . | . . . . . . . . . . . . . . . . . . Robots Rewired 19 | . . . . . . . . 2 . 2 . . . . 15 . . Allies Hacked . | . . . . . . . . . . . . . . . . . . Hacks Repelled . | . . . . . . . . . . . . . . . . . . Allies | -11 -10 -10 -10 -9 -8 -8 -8 -8 -7 -6 -6 -6 -5 -4 -4 -3 -3 -------- Run | Yrd Mat Min Exi Min Mat Gar Mat Gar Fac Fac Gar Fac Fac Fac Ext Res Gar Total Allies 42 | . . . . . . . 2 2 1 10 3 1 3 . 18 . 2 Largest Group 7 | . . . . . . . 1 2 3 7 3 1 2 . 7 . 2 Highest-Rated Group 310 | . . . . . . . 16 62 88 212 87 10 75 . 310 . 94 Highest-Rated Ally 51 | . . . . . . . 16 31 31 47 41 10 49 . 51 . 47 Total Orders 11 | . . . . . . . 1 . . 5 . . 2 1 1 . 1 STAY 4 | . . . . . . . 1 . . 2 . . 1 . . . . FOLLOW 4 | . . . . . . . . . . 3 . . 1 . . . . EXPLORE 3 | . . . . . . . . . . . . . . 1 1 . 1 Ally Attacks 200 | . . . . . . . 11 . . 51 25 . 4 . 102 . 7 Total Damage 4562 | . . . . . . . 154 . . 907 739 . 98 . 2390 . 274 Kills 25 | . . . . . . . . . . 8 2 . . . 14 . 1 Allies Corrupted 1 | . . . . . . . . . . . . . . . . . 1 Allies Melted 1 | . . . . . . . . . . . . . . . 1 . . Intel | -11 -10 -10 -10 -9 -8 -8 -8 -8 -7 -6 -6 -6 -5 -4 -4 -3 -3 ------- Run | Yrd Mat Min Exi Min Mat Gar Mat Gar Fac Fac Gar Fac Fac Fac Ext Res Gar Active Infowar (turns) 3406 | . 362 93 351 543 34 . . . . . 82 329 332 225 1055 . . Optics 19 | . . . . . 19 . . . . . . . . . . . . Sensors 1364 | . 362 93 351 543 15 . . . . . . . . . . . . Terrain 72 | . . . . . . . . . . . . . . . 72 . . Machine Analysis 1941 | . . . . . . . . . . . . 329 332 225 1055 . . ECM 205 | . . . . . . . . . . . 82 . 18 105 . . . Robot Analysis Total 2 | . . . . . . . . . . . . 1 . . 1 . . Derelict Logs Recovered 2 | . . 1 . 1 . . . . . . . . . . . . . Drone Launches 4 | . . . . . . . . . . . . . . 1 1 . 2 Drone Recoveries 2 | . . . . . . . . . . . . . . . 1 . 1 Exploration | -11 -10 -10 -10 -9 -8 -8 -8 -8 -7 -6 -6 -6 -5 -4 -4 -3 -3 ------------- Run | Yrd Mat Min Exi Min Mat Gar Mat Gar Fac Fac Gar Fac Fac Fac Ext Res Gar Turns Passed 7230 | . 454 93 351 543 385 865 464 312 107 455 748 420 332 225 1155 102 219 Spaces Moved 7551 | 1 240 37 217 312 625 945 473 274 183 615 488 918 579 354 926 183 181 Core 96 | . . . . . . . . . . . . . 1 . 75 . 20 Treads 721 | . 148 37 217 312 . . . . . . . . . . 7 . . Legs 133 | 1 92 . . . . . . . . . . . . . 40 . . Wheels 477 | . . . . . . . . . . . . . . . 477 . . Hover 31 | . . . . . . . . . . . . . . . 31 . . Flight 6093 | . . . . . 625 945 473 274 183 615 488 918 578 354 296 183 161 Fastest Speed 12 | 120 120 160 160 160 26 26 39 39 39 34 17 14 14 12 19 35 35 Average Speed 51 | 120 147 160 160 160 30 39 39 39 39 34 55 19 20 18 79 39 39 Slowest Speed 500 | 120 190 160 160 160 50 42 39 39 39 39 97 20 500 22 450 40 50 Overloaded Moves 95 | . . . . . . . . . . . 51 4 12 18 10 . . Propulsion Burnouts . | . . . . . . . . . . . . . . . . . . Robots Hopped 32 | . . . . . 22 . 1 . . . 3 1 1 . 1 . 3 Potential Cave-ins 10 | . . . . . . 5 2 . . . 2 . . . 1 . . Cave-ins Triggered 2 | . . . . . . . . . . . . . . . 2 . . Exploration Rate (%) 34 | 2 45 12 61 64 44 78 36 42 6 17 43 28 21 13 83 8 25 Regions Visited 17 Branch Regions 4 Pre-discovered Areas 3 | . . . 1 1 . . . . . . . 1 . . . . . Known Exits Taken 7 | . . . . . 1 . 1 . . 1 . . 1 1 1 1 . Unknown Exits Taken 7 | 1 1 1 1 1 . . . . 1 . . 1 . . . . . Scrap Searched 2 | . . . . 2 . . . . . . . . . . . . . Spaces Dug 43 | . . . . . . 15 5 3 . 1 3 8 2 4 2 . . Terrain Destroyed 500 | . . . . . 71 195 5 3 . 47 32 80 23 4 40 . . Melee 43 | . . . . . . 15 5 3 . 1 3 8 2 4 2 . . Projectile . | . . . . . . . . . . . . . . . . . . AOE 457 | . . . . . 71 180 . . . 46 29 72 21 . 38 . . Terrain Rammed . | . . . . . . . . . . . . . . . . . . Walls Destroyed . | . . . . . . . . . . . . . . . . . . Machines Disabled . | . . . . . . . . . . . . . . . . . . Actions | -11 -10 -10 -10 -9 -8 -8 -8 -8 -7 -6 -6 -6 -5 -4 -4 -3 -3 --------- Run | Yrd Mat Min Exi Min Mat Gar Mat Gar Fac Fac Gar Fac Fac Fac Ext Res Gar Total 10251 | . 284 71 222 337 790 1354 698 455 213 805 896 1107 767 497 1225 213 317 Wait 1757 | . 4 35 . 10 132 286 169 147 16 82 251 115 159 131 92 23 105 Move 7476 | . 239 36 216 311 583 944 471 272 182 615 482 915 576 353 923 183 175 Hop 28 | . . . . . 19 . 1 . . . 2 1 1 . 1 . 3 Pick Up 81 | . 4 . 4 2 7 14 5 . 2 9 14 7 4 . 8 1 . Fast Attach 77 | . 4 . . . 7 1 1 . . 1 11 3 1 4 37 4 3 Attach 71 | . 1 . . . 7 6 1 . 3 2 20 3 5 . 19 . 4 Detach 43 | . . . . . 9 2 2 . . 1 12 2 1 1 10 . 3 Swap 60 | . 3 . . . 6 9 8 . 5 10 7 5 1 . 1 1 4 Drop 64 | . 1 . 2 2 11 11 6 . . 4 11 5 3 . 5 1 2 Fire 174 | . 26 . . 9 9 19 9 . 4 29 11 15 5 . 29 . 9 Melee 236 | . . . . . . 37 25 12 . 26 44 21 11 8 51 . 1 Ram . | . . . . . . . . . . . . . . . . . . Kick 1 | . . . . . . . . . . . . . . . 1 . . Crush 5 | . 2 . . 3 . . . . . . . . . . . . . Escape Stasis 76 | . . . . . . 25 . . . . 30 15 . . . . 6 Rewire 102 | . . . . . . . . 24 1 26 1 . . . 48 . 2 Trap . | . . . . . . . . . . . . . . . . . . Miscellaneous . | . . . . . . . . . . . . . . . . . . Route ------- -11/Scrapyard -10/Materials (discovered 2 exits: [*Min x2]) -10/Mines -10/Exiles -9/Mines -8/Materials -8/Garrison (discovered 3 exits: *Mat x3) -8/Materials -8/Garrison (discovered 3 exits: [*Fac x3]) -7/Factory -6/Factory -6/Garrison (discovered 3 exits: *Fac x3) -6/Factory (discovered 3 exits: *Fac / *Low x2) -5/Factory (discovered 6 exits: *Fac x4 / Upp x2) -4/Factory (discovered 5 exits: Upp x2 / *Ext x2 / Arm) -4/Extension (discovered 2 exits: *Res / *Cet) -3/Research -3/Garrison History --------- Turn | Location | Event 1 | -11/Scrapyard | Discovered new exit (range 0) 1 | -11/Scrapyard | Entered Materials 247 | -10/Materials | Discovered new exit (range 15) 306 | -10/Materials | Build established: Mutant 393 | -10/Materials | Discovered new exit (range 15) 455 | -10/Materials | Entered Mines 456 | -10/Mines | Assembled infested the area 542 | -10/Mines | Discovered new exit (range 5) 548 | -10/Mines | Entered Exiles 591 | -10/Exiles | Met 8R-AWN 619 | -10/Exiles | Met EX-HEX 660 | -10/Exiles | Met EX-BIN 683 | -10/Exiles | Aligned with FarCom system 684 | -10/Exiles | Given EX-Vault access code 724 | -10/Exiles | Opened EX-Vault 738 | -10/Exiles | Found Flying Fortress v7 774 | -10/Exiles | Warned to stay clear of 0b10 Research branches 825 | -10/Exiles | Met EX-DEC 832 | -10/Exiles | Learned location of Zion (-6) 878 | -10/Exiles | Discovered new exit (range 14) 899 | -10/Exiles | Left Exiles lab with Flying Fortress v7 899 | -10/Exiles | Entered Mines 905 | -9/Mines | Met a Derelict bent on vengeance 1196 | -9/Mines | Build established: Skirmisher 1425 | -9/Mines | Discovered new exit (range 3) 1442 | -9/Mines | Entered Materials 1442 | -8/Materials | Evolved 4 slots: Propulsion x3, Utility x1 1817 | -8/Materials | Identified exit to Garrison 1827 | -8/Materials | Entered Garrison 1853 | -8/Garrison | Triggered checkpoint 1882 | -8/Garrison | Garrison Relay disabled 1984 | -8/Garrison | Spotted B-75 Beast 1984 | -8/Garrison | Spotted B-75 Beast 2005 | -8/Garrison | Discovered new exit (range 9) 2077 | -8/Garrison | Triggered checkpoint 2231 | -8/Garrison | Discovered new exit (range 14) 2234 | -8/Garrison | Destroyed 8 combat bots 2254 | -8/Garrison | Phase Generator disabled 2289 | -8/Garrison | Garrison Relay disabled 2299 | -8/Garrison | Destroyed 10 combat bots 2327 | -8/Garrison | Triggered checkpoint 2329 | -8/Garrison | Garrison Relay disabled 2369 | -8/Garrison | Triggered checkpoint 2608 | -8/Garrison | Triggered checkpoint 2620 | -8/Garrison | Garrison Relay disabled 2630 | -8/Garrison | Discovered new exit (range 14) 2644 | -8/Garrison | Garrison Relay disabled 2659 | -8/Garrison | Installed Relay Interface Framework 2687 | -8/Garrison | Build established: Gladiator 2692 | -8/Garrison | Entered Materials 3156 | -8/Materials | Identified exit to Garrison 3156 | -8/Materials | Entered Garrison 3174 | -8/Garrison | Expanded RIF knowledge: Command Fork 3182 | -8/Garrison | Discovered new exit (range 45) 3182 | -8/Garrison | Discovered new exit (range 57) 3182 | -8/Garrison | Discovered new exit (range 47) 3223 | -8/Garrison | Build established: Bothacker-Mutant 3468 | -8/Garrison | Entered Factory 3468 | -7/Factory | Accompanied by 2 allies 3468 | -7/Factory | Evolved 2 slots: Utility x2 3528 | -7/Factory | Discovered new exit (range 11) 3575 | -7/Factory | Entered another Factory area 3575 | -6/Factory | Accompanied by 3 allies 3575 | -6/Factory | Evolved 2 slots: Propulsion x1, Utility x1 3902 | -6/Factory | Lost 3 allies 3987 | -6/Factory | Identified exit to Garrison 4030 | -6/Factory | Entered Garrison 4030 | -6/Garrison | Accompanied by 3 allies 4054 | -6/Garrison | Spotted B-75 Beast 4073 | -6/Garrison | Found Relay Coupler [Proto] 4076 | -6/Garrison | Found Relay Coupler [Proto] 4077 | -6/Garrison | Found Relay Coupler [Proto] 4115 | -6/Garrison | Lost 3 allies 4362 | -6/Garrison | Triggered checkpoint 4452 | -6/Garrison | Discovered new exit (range 77) 4452 | -6/Garrison | Discovered new exit (range 95) 4452 | -6/Garrison | Discovered new exit (range 39) 4498 | -6/Garrison | Garrison Relay disabled 4530 | -6/Garrison | Triggered checkpoint 4656 | -6/Garrison | Lost 4 parts (1p1n1u1w) 4765 | -6/Garrison | Expanded RIF knowledge: Zone Cloak 4775 | -6/Garrison | Learned Factory security intel 4778 | -6/Garrison | Entered Factory 4785 | -6/Factory | Lost 3 parts (1p2n) 4855 | -6/Factory | Fabricated Hacking Suite (x1) 4860 | -6/Factory | Central database locked down 4987 | -6/Factory | Discovered new exit (range 15) 5031 | -6/Factory | Identified exit to Lower Caves 5164 | -6/Factory | Discovered new exit (range 14) 5192 | -6/Factory | Build established: Hacker-Sprinter 5198 | -6/Factory | Entered another Factory area 5198 | -5/Factory | Accompanied by 1 ally 5198 | -5/Factory | Evolved 2 slots: Utility x2 5292 | -5/Factory | Central database locked down 5366 | -5/Factory | Garrison activated, responded to threat 5497 | -5/Factory | Identified exit to Upper Caves 5516 | -5/Factory | Identified exit to Factory 5521 | -5/Factory | Lost 3 parts (1n1u1w) 5529 | -5/Factory | Spotted B-75 Beast 5530 | -5/Factory | Entered another Factory area 5530 | -4/Factory | Evolved 2 slots: Propulsion x1, Utility x1 5538 | -4/Factory | Identified exit to Upper Caves 5538 | -4/Factory | Identified exit to Extension 5538 | -4/Factory | Identified exit to Armory 5548 | -4/Factory | Watched by a mysterious "MATRIX" hacker 5585 | -4/Factory | Fabricated Hacking Suite (x1) 5679 | -4/Factory | Repaired Surge Thruster+ 5755 | -4/Factory | Entered Extension 5762 | -4/Extension | Disrupted transfer network 5914 | -4/Extension | Lost 5 parts (1p3n1w) 6096 | -4/Extension | Lost 6 parts (1p1n2u2w) 6126 | -4/Extension | Spotted B-86 Titan 6185 | -4/Extension | Rescued a captive Derelict 6186 | -4/Extension | Rescued a captive Derelict 6374 | -4/Extension | Build established: Hacker-Mutant 6446 | -4/Extension | Spotted B-86 Titan 6480 | -4/Extension | Rescued a captive Derelict 6489 | -4/Extension | Lost 3 parts (1p2u) 6518 | -4/Extension | Crushed by falling debris 6518 | -4/Extension | System corruption reached 10% 6544 | -4/Extension | Crushed by falling debris 6575 | -4/Extension | Lost 10 parts (4n3u3w) 6731 | -4/Extension | Core integrity fell below 50% 6797 | -4/Extension | Core integrity fell below 20% 6869 | -4/Extension | Lost 16 parts (1p8n6u1w) 6881 | -4/Extension | Discovered new exit (range 10) 6883 | -4/Extension | Discovered new exit (range 6) 6896 | -4/Extension | Identified exit to Cetus 6905 | -4/Extension | Identified exit to Research 6910 | -4/Extension | Entered Research 6910 | -3/Research | Evolved 2 slots: Utility x2 6983 | -3/Research | Spotted B-86 Titan 7012 | -3/Research | Identified exit to Garrison 7012 | -3/Research | Entered Garrison 7037 | -3/Garrison | Garrison Relay disabled 7056 | -3/Garrison | Triggered checkpoint 7201 | -3/Garrison | Spotted B-86 Titan 7201 | -3/Garrison | Triggered checkpoint 7202 | -3/Garrison | Triggered checkpoint 7218 | -3/Garrison | Core integrity fell below 50% 7231 | -3/Garrison | Self-destructed Last Messages --------------- 07221_ S-43 Plague destroyed. 07222_ P-80 Master resets S-43 Plague, system corruption cleaned. 07222_ Field strength at 4. 07223_ Stasis field depleted. 07223_ HERF Cannon destroyed. 07223_ Relay Coupler [Proto] destroyed. 07223_ HERF Cannon destroyed. 07225_ Triggered Stasis Trap. 07225_ A bubble of rippling energy engulfs the area. 07225_ Field strength at 94. 07225_ Field strength at 88. 07226_ Gyrokinetic Inverter destroyed. 07226_ Field strength at 59. 07227_ Field strength at 40. 07228_ Field strength at 10. 07229_ Field strength at 4. 07229_ Stasis field depleted. 07230_ Triggered Stasis Trap. 07230_ A bubble of rippling energy engulfs the area. 07230_ Field strength at 94. Map ----- +----------------------------------------------------+ | ?????????????????????????????????????????????????? | | ?????????????????????????????????????????????????? | | ?????????????????????????????????????????????????? | | ?????????????????????????????????????????????????? | | ?????????????????????????????????????????????????? | | ?????????????????????????????????????????????????? | | ?????????????????????????????????????????????????? | | ?????????????????????????????????????????????????? | | ?????????????????????????????????????????????????? | | ?????????????????????????????????????????????????? | | ????????????????????????? ?????????????????????? | | ????????????????????????? #????????????????????? | | ????????????????????????? #????????????????????? | | ????????????????????????? #????????????????????? | | ????????????????????????# #????????????????????? | | ????????????????????????# #????????????????????? | | ????????????????????????# #????????????????????? | | ????????????????????????# #????????????????????? | | ????????????????????????# #????????????????????? | | ????????????????????????# #????????????????????? | | ????????????????????????# #????????????????????? | | ???????????????????????## #####????????????????? | | ??????????????????????? / ?????????????????? | | ???????????????????????? p ???????????????????? | | ????????????????????????# s#????????????????????? | | ????????????????????gg??#@ s#????????????????????? | | ?????????????????????g??# #????????????????????? | | ????????????????????????# #????????????????????? | | ????????????????????????#^ #????????????????????? | | ????????????????????????# ss#????????????gg????? ? | | ????????????????????????# %p#############""""## # | | ????????????????????????#ss | | ????????????????????????#s BB | | ????????????????????????# gBBg | | ????????????????????????###########" ## #??? | | ?????????????????????????????????### "# ## | | ?????????????????????????????????# | | ?????????????????????????????????# | | ?????????????????????????????????# | | ?????????????????????????????????# | | ?????????????????????????????????###% #" ## | | ?????????????????????############### ## #??? | | ?????????????????????# | | ?????????????????????# | | ?????????????????????# ] | | ?????????????????????# #### ###########""""##### | | ?????????????????????# #?# #??????????????????? | | ?????????????????????# #?# #??????????????????? | | ?????????????????????# ##?# #??????????????????? | | ?????????????????????# #??# #??????????????????? | +----------------------------------------------------+ Best States ------------- Heat Dissipation 46 Energy Generation 29 Energy Capacity 1100 Matter Stores 300 Matter Capacity 300 Sight Range 18 Robot Scan Range 14 Terrain Scan Range 24 Terrain Scan Density 10 ECM Strength 1 Armor Coverage 225 Resistance: TH 10 Propulsion Shielding 66 Melee Speed Boost 20 Evasion (%) 66 Targeting Accuracy 8 Melee Accuracy 6 Recoil Reduction 2 Offensive Hacking 20 Defensive Hacking 30 Relay Coupler Types 4 Relay Coupler Value 98 Authchip Count 2 Item Schematics ----------------- Sml. Storage Unit | -8/Materials | Scanalyzed EMP Blaster | -8/Materials | Scanalyzed Adv. Visual Processing Unit | -8/Materials | Extracted Trap Scanner | -8/Materials | Extracted Field Recycling Unit | -8/Materials | Extracted Wheel | -8/Materials | Extracted Hacking Suite | -8/Materials | Hacked Remote Datajack | -6/Factory | Scanalyzed Robot Schematics ------------------ None Fabricated ------------ Hacking Suite | x1 | -6/Factory Hacking Suite | x1 | -4/Factory Repaired ---------- Surge Thruster | 18% | -4/Factory Studied --------- VTOL Module | -6/Factory | Hacked Surge Thruster | -6/Factory | Hacked Lgt. Deuterium Engine | -6/Factory | Hacked Field Propulsion Drive | -5/Factory | Hacked Powered Hammer | -5/Factory | Hacked Power Sword | -4/Factory | Hacked Remote Datajack | -4/Factory | Hacked Alien Tech Used ----------------- None Achievements -------------- None Challenges ------------ None Game ------ Seed DisruptorThermalBeam Manual? 0 Play Time 01:13:39 Cumulative 1362.3 hours Start 2026.08.12 @ 15:03:19 End 2026.08.13 @ 12:34:00 Sessions 11 Manual Loads 0 Difficulty Rogue Special Mode None Game No. 1672 Rogue 1388 Adventurer 124 Explorer 160 Win Type - Total 70 Types 55/0/9/4/1/0/0/1/0/0 Lore% 93 Gallery% 84 Achievement% 74 Wizard Run 0 Options --------- Layout 0 ASCII 0 Keyboard 1 Movement Numpad Keybinds 0 Fullscreen 2 Font 18/X11 Map View 76x50 Zoom Use 0% Tactical HUD 1 Map Filters NONE Filters NONE Steam 1 RUN: 2f7323a8-23ca-48b3-b35f-5680dfce0eba